fUST/lending_fUST_20240928
["ID","MTS","AMOUNT","RATE_DAILY","PERIOD"]
[339376029,1727508724650,-5620.43,0.00328767,120]
[339376030,1727508724660,-2000.0,0.0033,120]
[339376031,1727508724671,-606.06060606,0.0033,120]
[339376032,1727508724680,-700000.0,0.00333,120]
[339376033,1727508724691,-4000.0,0.00334,120]
[339376034,1727508724700,-366.8243206,0.00334247,120]
[339376035,1727508724710,-588.23529412,0.0034,120]
[339376036,1727508724720,-20000.0,0.00349998,120]
[339376037,1727508724730,-571.42857143,0.0035,120]
[339376038,1727508724744,-2000.0,0.0035,120]
[339376039,1727508724755,-1000.0,0.0035,120]
[339376040,1727508724765,-5000.0,0.0035,90]
[339376041,1727508724776,-3658.0840451,0.0035,120]
[339376042,1727508724787,-1998.23060988,0.0035,120]
[339376043,1727508724798,-3000.0,0.00355,120]
[339376044,1727508724809,-5620.43,0.00356164,120]
[339376045,1727508724819,-555.55555556,0.0036,120]
[339376046,1727508724829,-2000.0,0.0037,120]
[339376047,1727508724839,-540.54054054,0.0037,120]
[339376048,1727508724849,-526.31578947,0.0038,120]
[339376049,1727508724862,-1000.0,0.0038,120]
[339376050,1727508724873,-526.31578947,0.0038,120]
[339376051,1727508724884,-5620.43,0.00383561,120]
[339376052,1727508724895,-2000.0,0.00384,120]
[339376053,1727508724905,-156.68661675,0.00385,120]
[339376054,1727508724915,-1000.0,0.003863,120]
[339376055,1727508724925,-2000.0,0.0039,120]
[339376056,1727508724935,-512.82051282,0.0039,120]
[339376057,1727508724946,-1000.0,0.0039,120]
[339376058,1727508724957,-161553.395473,0.0039092,120]
[339376059,1727508724967,-468.3957567,0.00394247,120]
[339376060,1727508724977,-1000.0,0.003963,120]
[339376061,1727508724987,-10420.7641027,0.00398,120]
[339376062,1727508724998,-500.0,0.004,120]
[339376063,1727508725008,-600.0,0.004,120]
[339376064,1727508725018,-500.0,0.004,120]
[339376065,1727508725028,-500.0,0.004,120]
[339376066,1727508725038,-200.0,0.004,120]
[339376067,1727508725049,-400.0,0.004,20]
[339376068,1727508725058,-1000.0,0.004,120]
[339376069,1727508725068,-1998.23060988,0.004,120]
[339376070,1727508725078,-24945.999999,0.004,120]
[339376071,1727508725088,-487.80487805,0.0041,120]
[339376072,1727508725098,-3000.0,0.0041,120]
[339376073,1727508725108,-5620.43,0.00410958,120]
[339376074,1727508725119,-476.19047619,0.0042,120]
[339376075,1727508725129,-1000.0,0.0042,120]
[339376076,1727508725138,-3000.0,0.0043,120]
[339376077,1727508725148,-465.11627907,0.0043,120]
[339376078,1727508725160,-5620.43,0.00438356,120]
[339376079,1727508725171,-454.54545455,0.0044,120]
[339376080,1727508725181,-3000.0,0.00447,120]
[339376081,1727508725194,-3000.0,0.0045,120]
[339376082,1727508725203,-444.44444444,0.0045,120]
[339376083,1727508725212,-5000.0,0.0045,90]
[339376084,1727508725222,-1998.23060988,0.0045,120]
[339376085,1727508725234,-6500.0,0.0045,120]
[339376086,1727508725243,-434.7826087,0.0046,120]
[339376087,1727508725254,-5620.43,0.00465753,120]
[339376088,1727508725263,-5000.0,0.0047,30]
[339376089,1727508725273,-425.53191489,0.0047,120]
[339376090,1727508725283,-3000.0,0.0047,120]
[339376091,1727508725292,-1000.0,0.00473747,120]
[339376092,1727508725302,-416.66666667,0.0048,120]
[339376093,1727508725312,-156.68661675,0.004813,120]
[339376094,1727508725322,-1000.0,0.004863,120]
[339376095,1727508725331,-3000.0,0.0049,120]
[339376096,1727508725341,-408.16326531,0.0049,120]
[339376097,1727508725351,-5620.43,0.0049315,120]
[339376098,1727508725360,-161553.395473,0.00495853,120]
[339376099,1727508725370,-1000.0,0.004963,120]
[339376100,1727508725379,-20033.32,0.00498987,120]
[339376101,1727508725390,-1000.0,0.00499999,120]
[339376102,1727508725400,-400.0,0.005,120]
[339376103,1727508725411,-168.19240755,0.005,120]
[339376104,1727508725423,-600.0,0.005,120]
[339376105,1727508725433,-500.0,0.005,120]
[339376106,1727508725444,-150.0,0.005,60]
[339376107,1727508725454,-1998.23060988,0.005,120]
[339376108,1727508725464,-4055.6319261,0.005,120]
[339376109,1727508725475,-1000.0,0.005,120]
[339376110,1727508725487,-151.0,0.005,120]
[339376111,1727508725496,-4000.0,0.0051,120]
[339376112,1727508725506,-384.61538462,0.0052,120]
[339376113,1727508725515,-384.61538462,0.0052,120]
[339376114,1727508725525,-5620.43,0.00520547,120]
[339376115,1727508725535,-4000.0,0.0053,120]
[339376116,1727508725544,-377.35849057,0.0053,120]
[339376117,1727508725554,-366.8243206,0.00532398,120]
[339376118,1727508725564,-5620.43,0.00547945,120]
[339376119,1727508725574,-4000.0,0.0055,120]
[339376120,1727508725583,-5000.0,0.0055,90]
[339376121,1727508725595,-1998.23060988,0.0055,120]
[339376122,1727508725606,-363.63636364,0.0055,120]
[339376123,1727508725618,-363.63636364,0.0055,120]
[339376124,1727508725628,-357.14285714,0.0056,120]
[339376125,1727508725637,-350.87719298,0.0057,120]
[339376126,1727508725647,-350.87719298,0.0057,120]
[339376127,1727508725658,-4000.0,0.0057,120]
[339376128,1727508725667,-608.513,0.0057,120]
[339376129,1727508725680,-5620.43,0.00575342,120]
[339376130,1727508725690,-156.68661675,0.005775,120]
[339376131,1727508725700,-344.82758621,0.0058,120]
[339376132,1727508725709,-1000.0,0.0058,120]
[339376133,1727508725719,-344.82758621,0.0058,120]
[339376134,1727508725729,-568604.25894977,0.00583,50]
[339376135,1727508725739,-1000.0,0.005863,120]
[339376136,1727508725749,-3165.00755404,0.00587,50]
[339376137,1727508725758,-338.98305085,0.0059,120]
[339376138,1727508725768,-4000.0,0.0059,120]
[339376139,1727508725778,-1000.0,0.005963,120]
[339376140,1727508725787,-161553.395473,0.00596976,120]
[339376141,1727508725797,-50315.0,0.00598,120]
[339376142,1727508725808,-30000.0,0.00598987,120]
[339376143,1727508725820,-333.33333333,0.006,120]
[339376144,1727508725829,-2000.0,0.006,120]
[339376145,1727508725838,-600.0,0.006,120]
[339376146,1727508725849,-500.0,0.006,120]
[339376147,1727508725859,-160.0,0.006,120]
[339376148,1727508725869,-1130.0,0.006,120]
[339376149,1727508725879,-1000.0,0.006,120]
[339376150,1727508725889,-1998.23060988,0.006,120]
[339376151,1727508725899,-5620.43,0.00602739,120]
[339376152,1727508725909,-2000.0,0.0061,120]
[339376153,1727508725920,-327.86885246,0.0061,120]
[339376154,1727508725931,-1000.0,0.0061,120]
[339376155,1727508725943,-1112.08727944,0.0061,120]
[339376156,1727508725954,-322.58064516,0.0062,120]
[339376157,1727508726210,-2000.0,0.0062,120]
[339376158,1727508726220,-1000.0,0.0062,120]
[339376159,1727508726231,-2000.0,0.0062573,120]
[339376160,1727508726240,-2000.0,0.0063,120]
[339376161,1727508726251,-317.46031746,0.0063,120]
[339376162,1727508726260,-5620.43,0.00630136,120]
[339376163,1727508726269,-700000.0,0.00633,120]
[339376164,1727508726279,-412.2788661,0.00634247,120]
[339376165,1727508726288,-312.5,0.0064,120]
[339376166,1727508726298,-2000.0,0.0064,120]
[339376167,1727508726308,-1035.92299936,0.0064,120]
[339376168,1727508726320,-2000.0,0.0065,120]
[339376169,1727508726329,-307.69230769,0.0065,120]
[339376170,1727508726339,-1998.23060988,0.0065,120]
[339376171,1727508726348,-5620.43,0.00657534,120]
[339376172,1727508726358,-303.03030303,0.0066,120]
[339376173,1727508726370,-2000.0,0.0066,120]
[339376174,1727508726380,-2000.0,0.0067,120]
[339376175,1727508726390,-298.50746269,0.0067,120]
[339376176,1727508726400,-570.60962666,0.0067,120]
[339376177,1727508726411,-156.68661675,0.006738,120]
[339376178,1727508726422,-5000.0,0.006748,120]
[339376179,1727508726431,-2000.0,0.0068,120]
[339376180,1727508726442,-888.0,0.0068,120]
[339376181,1727508726456,-1000.0,0.0068,120]
[339376182,1727508726466,-294.11764706,0.0068,120]
[339376183,1727508726476,-182.23449033,0.0068015,120]
[339376184,1727508726487,-5620.43,0.00684931,120]
[339376185,1727508726498,-1000.0,0.006863,120]
[339376186,1727508726508,-3000.0,0.00688,120]
[339376187,1727508726518,-2000.0,0.0069,120]
[339376188,1727508726528,-289.85507246,0.0069,120]
[339376189,1727508726538,-1000.0,0.0069,120]
[339376190,1727508726549,-80776.6977364,0.00690443,120]
[339376191,1727508726560,-1000.0,0.006963,120]
[339376192,1727508726571,-1009.9777634,0.006988,120]
[339376193,1727508726581,-1000.0,0.00699999,120]
[339376194,1727508726592,-481.46434497,0.007,120]
[339376195,1727508726605,-285.71428571,0.007,120]
[339376196,1727508726617,-100000.0,0.007,120]
[339376197,1727508726627,-2000.0,0.007,120]
[339376198,1727508726638,-4677.96573609,0.007,120]
[339376199,1727508726649,-500.0,0.007,120]
[339376200,1727508726661,-177.96428573,0.007,120]
[339376201,1727508726675,-5000.0,0.007,90]
[339376202,1727508726686,-200.0,0.007,20]
[339376203,1727508726697,-1998.23060988,0.007,120]
[339376204,1727508726708,-100000.0,0.007,120]
[339376205,1727508726719,-10000.0,0.007,120]
[339376206,1727508726732,-4866.2124305,0.007,120]
[339376207,1727508726743,-281.69014085,0.0071,120]
[339376208,1727508726753,-2000.0,0.0071,120]
[339376209,1727508726763,-26958.43721341,0.0071,120]
[339376210,1727508726774,-5620.6172583,0.00712328,120]
[339376211,1727508726784,-2000.0,0.0072,120]
[339376212,1727508726794,-10000.0,0.00727,120]
[339376213,1727508726804,-216.646,0.00727,120]
[339376214,1727508726814,-273.97260274,0.0073,120]
[339376215,1727508726824,-2000.0,0.0073,120]
[339376216,1727508726834,-1000.0,0.0074,120]
[339376217,1727508726843,-270.27027027,0.0074,120]
[339376218,1727508726854,-2000.0,0.0074,120]
[339376219,1727508726866,-1000.0,0.00746,120]
[339376220,1727508726876,-500.0,0.0074747,120]
[339376221,1727508726886,-44520.0,0.007488,120]
[339376222,1727508726895,-1000.0,0.0075,120]
[339376223,1727508726905,-266.66666667,0.0075,120]
[339376224,1727508726915,-2000.0,0.0075,120]
[339376225,1727508726924,-603.57723243,0.0075,120]
[339376226,1727508726935,-1998.23060988,0.0075,120]
[339376227,1727508730544,168.0150828,0.00032459,2]
[339376228,1727508730769,161.044977,0.00032668,2]
[339376234,1727509435367,3122.36,0.00021001,2]
[339376235,1727509627140,-154.23,0.000266,31]
[339376236,1727509627169,-154.23,0.000266,31]
[339376237,1727509627196,-154.23,0.000266,31]
[339376238,1727509627228,-153.80331275,0.000266,31]
[339376239,1727509629122,-0.42668725,0.000266,31]
[339376240,1727509629153,-154.23,0.000302,31]
[339376241,1727509629179,-71.87411434,0.000302,31]
[339376242,1727509633140,-82.35588566,0.000302,31]
[339376243,1727509633167,-154.23,0.000302,31]
[339376244,1727509633193,-154.23,0.000302,31]
[339376245,1727509633218,-154.23,0.000302,31]
[339376246,1727509633245,-154.23,0.000302,31]
[339376247,1727509633269,-154.23,0.000302,31]
[339376248,1727509633295,-154.23,0.000302,31]
[339376249,1727509633320,-154.23,0.000337,31]
[339376250,1727509633347,-154.23,0.000337,31]
[339376251,1727509633371,-154.23,0.000337,31]
[339376252,1727509633395,-154.23,0.000337,31]
[339376253,1727509633420,-154.23,0.000337,31]
[339376254,1727509633445,-154.23,0.000337,31]
[339376255,1727509633470,-154.23,0.000337,31]
[339376256,1727509633496,-154.23,0.000337,31]
[339376257,1727509633518,-232.6561564,0.00033893,2]
[339376258,1727509633540,-400.0,0.00035616,2]
[339376259,1727509633767,-163.904073,0.00036236,2]
[339376260,1727509633802,-163.904073,0.00036382,2]
[339376261,1727509633825,-163.904073,0.00036527,2]
[339376262,1727509633847,-163.904073,0.00036672,2]
[339376263,1727509633868,-163.904073,0.00036817,2]
[339376264,1727509633890,-77.25813768,0.00036963,2]
[339376265,1727509635124,-86.64593532,0.00036963,2]
[339376266,1727509635151,-98.47614528,0.00037108,2]
[339376268,1727509641102,-65.42792772,0.00037108,2]
[339376269,1727509641124,-306.0,0.00037233,2]
[339376270,1727509641150,-9.40328739,0.00037253,2]
[339376274,1727509745104,-200.0,0.00035616,2]
[339376275,1727509745127,-154.50078561,0.00037253,2]
[339376276,1727509745152,-154.23,0.000373,31]
[339376277,1727509745177,-154.23,0.000373,31]
[339376278,1727509745201,-154.23,0.000373,31]
[339376279,1727509745228,-154.23,0.000373,31]
[339376280,1727509745255,-154.23,0.000373,31]
[339376281,1727509745280,-154.23,0.000373,31]
[339376282,1727509745307,-154.23,0.000373,31]
[339376283,1727509745334,-154.23,0.000373,31]
[339376284,1727509745357,-163.904073,0.00037398,2]
[339376285,1727509745379,-163.904073,0.00037544,2]
[339376286,1727509745400,-163.904073,0.00037689,2]
[339376287,1727509745422,-163.904073,0.00037834,2]
[339376295,1727509818518,508.896,0.00037534,120]
[339376342,1727509832183,-163.904073,0.00037979,2]
[339376344,1727509832195,-163.904073,0.00038125,2]
[339376347,1727509832205,-476.98073407,0.00038356,120]
[339376401,1727509838249,-23.01926593,0.00038356,120]
[339376402,1727509838258,-100.92067427,0.00038356,120]
[339376403,1727509838337,-219.13206516,0.00038356,120]
[339376404,1727509838347,-500.0,0.00038356,120]
[339376405,1727509838357,-281.36800784,0.00038356,90]
[339376406,1727509838411,-1218.63199216,0.00038356,90]
[339376407,1727509838420,-500.0,0.0003863,120]
[339376408,1727509838430,-1500.0,0.0003863,90]
[339376409,1727509838443,-642.65688376,0.00038904,120]
[339376410,1727509838453,-1500.0,0.00038904,90]
[339376411,1727509838462,-500.0,0.00039177,120]
[339376412,1727509838472,-1500.0,0.00039178,90]
[339376413,1727509838481,-500.0,0.00039451,120]
[339376414,1727509838491,-1174.18220223,0.00039452,90]
[339376415,1727509838500,-500.0,0.00039725,120]
[339376416,1727509838510,-500.0,0.00039999,120]
[339376417,1727509838519,-2000.0,0.0004,120]
[339376418,1727509838529,-500.0,0.00040272,120]
[339376419,1727509838539,-500.0,0.00040272,21]
[339376420,1727509838548,-500.0,0.00040273,120]
[339376421,1727509838558,-500.0,0.00040546,120]
[339376422,1727509838567,-500.0,0.00040547,120]
[339376423,1727509838577,-302.8968118,0.00040643,2]
[339376424,1727509838587,-290.8570059,0.00040643,2]
[339376425,1727509838597,-163.5806244,0.00040643,2]
[339376426,1727509838607,-153.2791696,0.00040643,2]
[339376427,1727509838617,-500.0,0.0004082,120]
[339376428,1727509838627,-500.0,0.00040821,120]
[339376429,1727509838636,-154.23,0.000409,31]
[339376430,1727509838645,-154.23,0.000409,31]
[339376431,1727509838656,-154.23,0.000409,31]
[339376432,1727509838665,-154.23,0.000409,31]
[339376433,1727509838674,-154.23,0.000409,31]
[339376434,1727509838684,-154.23,0.000409,31]
[339376435,1727509838693,-154.23,0.000409,31]
[339376436,1727509838704,-154.23,0.000409,31]
[339376437,1727509838714,-154.23,0.000409,31]
[339376438,1727509838723,-154.23,0.000409,31]
[339376439,1727509838734,-400.0,0.00040952,2]
[339376440,1727509838744,-565.96999999,0.00041094,120]
[339376441,1727509838753,-500.0,0.00041095,120]
[339376442,1727509838763,-500.0,0.00041369,120]
[339376443,1727509838772,-507.68933763,0.00041643,120]
[339376444,1727509838782,-2000.0,0.00042142,120]
[339376445,1727509838791,-2000.0,0.00042142,120]
[339376446,1727509838800,-1035.82,0.00042465,30]
[339376447,1727509838810,-1035.82,0.0004315,33]
[339376448,1727509838820,-1035.82,0.00043835,36]
[339376449,1727509838829,-1035.82,0.0004452,39]
[339376450,1727509838839,-1035.82,0.00045205,42]
[339376451,1727509838848,-1035.82,0.0004589,45]
[339376452,1727509838857,-400.0,0.00046287,2]
[339376453,1727509838867,-1035.82,0.00046575,48]
[339376454,1727509838876,-1035.82,0.0004726,51]
[339376455,1727509838885,-1035.82,0.00047945,54]
[339376456,1727509838894,-1035.82,0.0004863,57]
[339376457,1727509838903,-1035.82,0.00049315,60]
[339376458,1727509838913,-1917.10171169,0.0005,120]
[339376459,1727509838922,-1035.82,0.0005,63]
[339376460,1727509838932,-1035.82,0.00050684,66]
[339376461,1727509838941,-1035.82,0.00051369,69]
[339376462,1727509838951,-400.0,0.00051622,2]
[339376463,1727509838961,-1035.82,0.00052054,72]
[339376464,1727509838970,-1035.82,0.00052739,75]
[339376465,1727509838979,-1035.82,0.00053424,78]
[339376466,1727509838989,-1035.82,0.00054109,81]
[339376467,1727509838998,-1035.82,0.00054794,84]
[339376468,1727509839007,-1035.82,0.00055479,87]
[339376469,1727509839017,-1035.82,0.00056164,90]
[339376470,1727509839026,-1035.82,0.00056849,93]
[339376471,1727509839037,-400.0,0.00056957,2]
[339376472,1727509839046,-1035.82,0.00057534,96]
[339376473,1727509839056,-1036.02919627,0.00058219,99]
[339376474,1727509839065,-2000.0,0.0006,120]
[339376475,1727509839074,-150.0,0.00062,120]
[339376476,1727509839083,-400.0,0.00062293,2]
[339376477,1727509839092,-150.0,0.00063,120]
[339376478,1727509839102,-200.0,0.00064,120]
[339376479,1727509839111,-152.0,0.00065753,120]
[339376480,1727509839121,-400.0,0.00067628,2]
[339376481,1727509839131,-400.0,0.00072963,2]
[339376482,1727509839140,-400.0,0.00078299,2]
[339376483,1727509839149,-400.0,0.00083634,120]
[339376484,1727509839159,-1000.0,0.000863,120]
[339376485,1727509839169,-400.0,0.00088969,120]
[339376486,1727509839178,-400.0,0.00094304,120]
[339376487,1727509839188,-400.0,0.0009964,120]
[339376488,1727509839197,-2000.0,0.001,120]
[339376489,1727509839206,-152.0,0.00101376,120]
[339376490,1727509839216,-400.0,0.00104975,120]
[339376491,1727509839225,-740.19843266,0.00106,120]
[339376492,1727509839235,-9321.09419822,0.00106,120]
[339376493,1727509839244,-739.0,0.00107,120]
[339376494,1727509839253,-9319.0,0.00107,120]
[339376495,1727509839262,-739.0,0.00108,120]
[339376496,1727509839274,-9319.0,0.00108,120]
[339376497,1727509839284,-682.99051311,0.00108,120]
[339376498,1727509839293,-400.0,0.0011031,120]
[339376499,1727509839302,-400.0,0.00115645,120]
[339376500,1727509839311,-400.0,0.00120981,120]
[339376501,1727509839321,-400.0,0.00126316,120]
[339376502,1727509839339,-400.0,0.00131651,120]
[339376503,1727509839350,-350.39583777,0.0013426,90]
[339376504,1727509839360,-200.0,0.00136986,120]
[339376505,1727509839373,-400.0,0.00136986,120]
[339376506,1727509839572,-152.0,0.00136999,120]
[339376507,1727509839582,-152.0,0.00172622,120]
[339376508,1727509839592,-1000.0,0.001863,120]
[339376509,1727509839601,-162.73256913,0.001925,120]
[339376510,1727509839610,-2000.0,0.002,120]
[339376511,1727509839625,-152.0,0.00208244,120]
[339376512,1727509839634,-590.85,0.00243857,120]
[339376513,1727509839644,-152.0,0.00243867,120]
[339376514,1727509839654,-5019.7428,0.00245,120]
[339376515,1727509839664,-20194.1744341,0.00273963,60]
[339376516,1727509839673,-151.0,0.00273973,120]
[339376517,1727509839685,-151.0,0.00273973,120]
[339376518,1727509839694,-151.0,0.00273973,90]
[339376519,1727509839704,-152.0,0.0027949,120]
[339376521,1727509839713,-1000.0,0.002863,120]
[339376523,1727509839723,-156.68661675,0.002888,120]
[339376525,1727509839733,-2000.0,0.003,120]
[339376527,1727509839742,-152.0,0.00315113,120]
[339376529,1727509839751,-152.0,0.00350736,120]
[339376531,1727509839760,-156.68661675,0.003851,120]
[339376533,1727509839770,-1000.0,0.003863,120]
[339376535,1727509839779,-152.0,0.00386359,120]
[339376537,1727509839788,-1555.81,0.004,120]
[339376539,1727509839798,-152.0,0.00421982,120]
[339376541,1727509839807,-152.0,0.00457605,120]
[339376544,1727509839817,-156.68661675,0.004814,120]
[339376547,1727509839826,-1000.0,0.004863,120]
[339376550,1727509839835,-152.0,0.00493227,120]
[339376552,1727509839845,-156.68661675,0.005213,120]
[339376554,1727509839854,-152.0,0.0052885,120]
[339376556,1727509839864,-5759.69244634,0.0054,120]
[339376558,1727509839874,-50192.0,0.0054,120]
[339376560,1727509839883,-412.2788661,0.00540642,120]
[339376562,1727509839892,-412.2788661,0.00540642,120]
[339376563,1727509839901,-2353.69,0.0054999,120]
[339376564,1727509839910,-4733.79735401,0.0055,120]
[339376568,1727509840232,-512.37431689,0.0053999,120]
[339376587,1727509843236,-716.53763436,0.0053999,120]
[339376588,1727509843248,-732.48804875,0.0053999,120]
[339376589,1727509843258,-7532.9978129,0.0055,120]
[339376590,1727509843268,-152.0,0.00564473,120]
[339376591,1727509843280,-156.68661675,0.005776,120]
[339376592,1727509843290,-3389.31,0.0057998,120]
[339376593,1727509843299,-570.60271228,0.0057998,120]
[339376607,1727510267641,-400.0,0.00035616,2]
[339376630,1727510680434,-300.0,0.00034999,2]
[339376631,1727510680458,-400.0,0.00034999,2]
[339376632,1727510680480,-19177.0,0.00035,2]
[339376633,1727510680502,-410.0,0.00037527,2]
[339376634,1727510680528,-154.26,0.000409,31]
[339376635,1727510680555,-154.26,0.000409,31]
[339376636,1727510680581,-154.26,0.000409,31]
[339376637,1727510680606,-154.26,0.000409,31]
[339376638,1727510680632,-154.26,0.000409,31]
[339376639,1727510680659,-400.0,0.00040952,2]
[339376640,1727510680682,-400.0,0.00046287,2]
[339376641,1727510680706,-500.0,0.00050569,120]
[339376642,1727510680728,-178.67680362,0.00050569,120]
[339376643,1727510680765,-350.7883957,0.0005057,2]
[339376644,1727510680791,-306.9901874,0.0005057,2]
[339376645,1727510680818,-209.2405291,0.0005057,2]
[339376646,1727510680844,-209.2405291,0.0005057,2]
[339376647,1727510680867,-209.2405291,0.0005057,2]
[339376648,1727510680893,-525.0,0.00050954,120]
[339376649,1727510680917,-150.0,0.00050954,120]
[339376650,1727510680941,-1217.0,0.00050954,120]
[339376651,1727510680968,-400.0,0.00051622,2]
[339376652,1727510680991,-500.0,0.00054794,120]
[339376653,1727510681015,-500.0,0.00054794,30]
[339376654,1727510681043,22885.52302598,0.00054794,120]
[339376670,1727510825195,-160.0,0.00035616,2]
[339376671,1727510825218,-158.56584506,0.00036253,2]
[339376672,1727510832149,-169.42808194,0.00036253,2]
[339376673,1727510832172,-759.6865722,0.00036378,2]
[339376674,1727510832200,-160.0,0.0004688,2]
[339376675,1727510832224,-327.993927,0.00054379,2]
[339376676,1727510832247,-153.59973814,0.00054794,120]
[339376677,1727510832270,-400.0,0.00056957,2]
[339376678,1727510832294,-160.0,0.00058143,2]
[339376679,1727510832317,-300.0,0.00059999,120]
[339376680,1727510832340,-1035.34409559,0.0006,120]
[339376681,1727510837117,-672.45845453,0.00050782,2]
[339376683,1727510846098,-106.64473217,0.00050782,2]
[339376684,1727510846121,-243.81878982,0.0006,120]
[339376685,1727510852110,-763.52544269,0.0006,120]
[339376686,1727510852134,-150.0,0.00062,120]
[339376687,1727510852159,-400.0,0.00062293,2]
[339376688,1727510852185,-150.0,0.00063,120]
[339376689,1727510852208,-200.0,0.00064,120]
[339376690,1727510852232,-152.0,0.00065753,120]
[339376691,1727510852255,-500.0,0.00065999,120]
[339376692,1727510852278,-500.0,0.00065999,120]
[339376693,1727510852301,-491.14548449,0.00065999,120]
[339376694,1727510852324,-182.884301,0.00066753,2]
[339376695,1727510852350,-182.884301,0.00067622,2]
[339376696,1727510852375,-400.0,0.00067628,2]
[339376697,1727510852400,-182.884301,0.00068492,2]
[339376698,1727510852423,-182.884301,0.00069362,2]
[339376699,1727510852451,-160.0,0.00069406,2]
[339376700,1727510852475,-182.884301,0.00070231,2]
[339376701,1727510852499,-400.0,0.00072963,2]
[339376702,1727510852524,-505.12144837,0.00076712,120]
[339376703,1727510852548,-80.11573433,0.00076712,30]
[339376705,1727510946127,-151.0,0.0003,120]
[339376706,1727510949170,-500.0,0.00034667,120]
[339376707,1727510949194,-151.0,0.00036,120]
[339376714,1727511014501,151.0,0.0003,120]
[339376715,1727511015084,151.0,0.00034,120]
[339376716,1727511015678,151.0,0.00038,120]
[339376756,1727511032294,-151.0,0.00042,120]
[339376758,1727511032304,-1518.47258463,0.00044444,8]
[339376835,1727511037962,151.0,0.0003,120]
[339376892,1727511038914,-151.0,0.00038575,120]
[339376893,1727511038925,-20402.62243654,0.00044444,8]
[339376929,1727511043181,-11656.15818823,0.00044444,8]
[339376932,1727511043237,-427.5947468,0.00044444,8]
[339376936,1727511043250,-685.690926,0.00044444,8]
[339376937,1727511043262,-7217.88,0.00044444,8]
[339376938,1727511043273,-589.29,0.00044444,8]
[339376947,1727511043408,-9608.82583568,0.00044444,8]
[339376950,1727511043420,-3489.59752923,0.00044444,8]
[339376952,1727511043515,-14032.3563916,0.00044444,8]
[339376953,1727511043526,-5734.36946155,0.00044444,8]
[339376964,1727511046454,-46205.18522013,0.00044444,8]
[339376965,1727511046463,-151.0,0.00046,120]
[339376966,1727511046473,-151.0,0.00047151,120]
[339376968,1727511046483,-151.0,0.0005,120]
[339376969,1727511046492,-151.0,0.00054,120]
[339376970,1727511046502,-151.0,0.00055726,120]
[339376971,1727511046511,-3426.69342702,0.000559,120]
[339376972,1727511046520,-151.0,0.00058,120]
[339376973,1727511046529,-151.0,0.00062,120]
[339376974,1727511046538,-151.0,0.00064301,120]
[339376975,1727511046548,-161.044978,0.0006513,120]
[339376976,1727511046557,-300.0,0.00065998,60]
[339376977,1727511046567,-500.0,0.00065999,120]
[339376978,1727511046578,-228.52592194,0.00065999,120]
[339376979,1727511046588,-151.0,0.00066,120]
[339376980,1727511046597,-151.0,0.0007,120]
[339376981,1727511046607,-151.0,0.00072877,120]
[339376982,1727511046616,-151.0,0.00074,120]